fUSD/lending_fUSD_20240318
["ID","MTS","AMOUNT","RATE_DAILY","PERIOD"]
[319482304,1710799974691,-1234.18,0.00024931,2]
[319482305,1710799974702,-775.21,0.00024931,2]
[319482306,1710799974712,-1640.92,0.00024931,2]
[319482307,1710799974721,-660.8,0.00024931,2]
[319482308,1710799974730,-618.02,0.00024931,2]
[319482309,1710799974739,-2991.4,0.00024931,2]
[319482310,1710799974749,-500.0,0.00024931,2]
[319482311,1710799974758,-526.67,0.00024931,2]
[319482312,1710799974768,-520.66,0.00024931,2]
[319482313,1710799974777,-3432.69,0.00024931,2]
[319482314,1710799974787,-929.21,0.00024931,2]
[319482315,1710799974796,-2512.6,0.00024931,2]
[319482316,1710799974805,-500.0,0.00024931,2]
[319482317,1710799974815,-553.17,0.00024931,2]
[319482318,1710799974825,-632.91,0.00024931,2]
[319482319,1710799974834,-587.03,0.00024931,2]
[319482320,1710799974843,-500.0,0.00024931,2]
[319482321,1710799974853,-500.0,0.00024931,2]
[319482322,1710799974862,-1670.28,0.00024931,2]
[319482323,1710799974872,-1508.72,0.00024931,2]
[319482324,1710799974881,-500.0,0.00024931,2]
[319482325,1710799974891,-588.94,0.00024931,2]
[319482326,1710799974900,-2672.81,0.00024931,2]
[319482327,1710799974909,-992.88,0.00024931,2]
[319482328,1710799974918,-1421.34,0.00024931,2]
[319482329,1710799974927,-1591.7,0.00024931,2]
[319482330,1710799974936,-1479.34,0.00024931,2]
[319482331,1710799974945,-549.69,0.00024931,2]
[319482332,1710799974957,-500.0,0.00024931,2]
[319482333,1710799974966,-778.13,0.00024931,2]
[319482334,1710799974975,-1096.72,0.00024931,2]
[319482335,1710799974984,-2210.21,0.00024931,2]
[319482336,1710799974993,-1855.24,0.00024931,2]
[319482337,1710799975002,-500.0,0.00024931,2]
[319482338,1710799975011,-869.7,0.00024931,2]
[319482339,1710799975020,-1747.53,0.00024931,2]
[319482340,1710799975029,-680.92,0.00024931,2]
[319482341,1710799975038,-500.0,0.00024931,2]
[319482342,1710799975048,-1181.58,0.00024931,2]
[319482343,1710799975057,-665.42,0.00024931,2]
[319482344,1710799975066,-1501.92,0.00024931,2]
[319482345,1710799975075,-2323.42,0.00024931,2]
[319482346,1710799975083,-2355.45,0.00024931,2]
[319482347,1710799975092,-2348.13,0.00024931,2]
[319482348,1710799975101,-1841.43,0.00024931,2]
[319482349,1710799975110,-633.95,0.00024931,2]
[319482350,1710799975118,-2789.32,0.00024931,2]
[319482351,1710799975129,-1047.26,0.00024931,2]
[319482352,1710799975138,-500.0,0.00024931,2]
[319482353,1710799975147,-506.7,0.00024931,2]
[319482354,1710799975156,-500.0,0.00024931,2]
[319482355,1710799975165,-2028.96,0.00024931,2]
[319482356,1710799975174,-500.0,0.00024931,2]
[319482357,1710799975184,-727.29,0.00024931,2]
[319482358,1710799975193,-1121.74,0.00024931,2]
[319482359,1710799975205,-500.0,0.00024931,2]
[319482360,1710799975214,-500.0,0.00024931,2]
[319482361,1710799975223,-1964.52,0.00024931,2]
[319482362,1710799975232,-800.57,0.00024931,2]
[319482363,1710799975242,-855.83,0.00024931,2]
[319482364,1710799975251,-515.18,0.00024931,2]
[319482365,1710799975260,-805.44,0.00024931,2]
[319482366,1710799975270,-1465.25,0.00024931,2]
[319482367,1710799975278,-1137.55,0.00024931,2]
[319482368,1710799975288,-703.59,0.00024931,2]
[319482369,1710799975297,-1372.51,0.00024931,2]
[319482370,1710799975306,-500.0,0.00024931,2]
[319482371,1710799975315,-1311.42,0.00024931,2]
[319482372,1710799975324,-890.31,0.00024931,2]
[319482373,1710799975333,-693.23,0.00024931,2]
[319482374,1710799975342,-606.63,0.00024931,2]
[319482375,1710799975351,-1355.8,0.00024931,2]
[319482376,1710799975360,-633.23,0.00024931,2]
[319482377,1710799975369,-1311.22,0.00024931,2]
[319482378,1710799975380,-931.19,0.00024931,2]
[319482379,1710799975389,-500.0,0.00024931,2]
[319482380,1710799975398,-502.25331271,0.00024931,2]
[319482381,1710799975407,-560.88,0.00024931,2]
[319482382,1710799975416,-931.2,0.00024931,2]
[319482383,1710799975425,-578.22,0.00024931,2]
[319482384,1710799975435,-1373.23,0.00024931,2]
[319482385,1710799975444,-1189.08,0.00024931,2]
[319482386,1710799975456,-582.88,0.00024931,2]
[319482387,1710799975465,-500.0,0.00024931,2]
[319482388,1710799975474,-807.67,0.00024931,2]
[319482389,1710799975484,-500.0,0.00024931,2]
[319482390,1710799975493,-500.0,0.00024931,2]
[319482391,1710799975502,-500.0,0.00024931,2]
[319482392,1710799975511,-500.0,0.00024931,2]
[319482393,1710799975521,-1318.07,0.00024931,2]
[319482394,1710799975530,-2537.59,0.00024931,2]
[319482395,1710799975539,-1833.13,0.00024931,2]
[319482396,1710799975548,-500.0,0.00024931,2]
[319482397,1710799975557,-584.63,0.00024931,2]
[319482398,1710799975567,-922.71,0.00024931,2]
[319482399,1710799975576,-522.08,0.00024931,2]
[319482400,1710799975587,-667.48,0.00024931,2]
[319482401,1710799975597,-1186.68,0.00024931,2]
[319482402,1710799975606,-182.43265418,0.00024931,2]
[319482403,1710799975615,-1847.99,0.00024931,2]
[319482404,1710799975624,-998.55,0.00024931,2]
[319482405,1710799975633,-607.9682435,0.00024931,2]
[319482406,1710799975643,-500.0,0.00024931,2]
[319482407,1710799975652,-797.09,0.00024931,2]
[319482408,1710799975662,-1079.26,0.00024931,2]
[319482409,1710799975673,-1856.02,0.00024931,2]
[319482410,1710799975683,-1418.3,0.00024931,2]
[319482411,1710799975692,-897.94,0.00024931,2]
[319482412,1710799975702,-1186.25,0.00024931,2]
[319482413,1710799975711,-844.5,0.00024931,2]
[319482414,1710799975721,-524.64754565,0.00024931,2]
[319482415,1710799975730,-1228.33,0.00024931,2]
[319482416,1710799975739,-656.86,0.00024931,2]
[319482417,1710799975748,-197.55952829,0.00024931,2]
[319482418,1710799975757,-1254.05,0.00024931,2]
[319482419,1710799975766,-1220.28,0.00024931,2]
[319482420,1710799975775,-524.26,0.00024931,2]
[319482421,1710799975784,-500.0,0.00024931,2]
[319482422,1710799975793,-544.86,0.00024931,2]
[319482423,1710799975802,-1112.38,0.00024931,2]
[319482424,1710799975811,-1554.62,0.00024931,2]
[319482425,1710799975821,-990.25,0.00024931,2]
[319482426,1710799975830,-1046.24,0.00024931,2]
[319482427,1710799975839,-525.88,0.00024931,2]
[319482428,1710799975848,-615.98,0.00024931,2]
[319482429,1710799975857,-500.0,0.00024931,2]
[319482430,1710799975866,-1155.33,0.00024931,2]
[319482431,1710799975875,-3244.32,0.00024931,2]
[319482432,1710799975884,-527.83,0.00024931,2]
[319482433,1710799975893,-500.0,0.00024931,2]
[319482434,1710799975902,-1017.43,0.00024931,2]
[319482435,1710799975911,-1754.86,0.00024931,2]
[319482436,1710799975920,-1859.5,0.00024931,2]
[319482437,1710799975929,-1204.75,0.00024931,2]
[319482438,1710799975938,-721.17,0.00024931,2]
[319482439,1710799975947,-1304.47,0.00024931,2]
[319482440,1710799975958,-1387.32,0.00024931,2]
[319482441,1710799975966,-1084.75,0.00024931,2]
[319482442,1710799975975,-984.35,0.00024931,2]
[319482443,1710799975984,-500.0,0.00024931,2]
[319482444,1710799975993,-500.0,0.00024931,2]
[319482445,1710799976002,-500.0,0.00024931,2]
[319482446,1710799976011,-1042.11,0.00024931,2]
[319482447,1710799976020,-550.03,0.00024931,2]
[319482448,1710799976030,-500.0,0.00024931,2]
[319482449,1710799976039,-3263.23,0.00024931,2]
[319482450,1710799976048,-1980.05,0.00024931,2]
[319482451,1710799976057,-1006.81,0.00024931,2]
[319482452,1710799976066,-1334.24,0.00024931,2]
[319482453,1710799976075,-500.0,0.00024931,2]
[319482454,1710799976085,-500.0,0.00024931,2]
[319482455,1710799976093,-879.01,0.00024931,2]
[319482456,1710799976102,-772.45,0.00024931,2]
[319482457,1710799976111,-577.06,0.00024931,2]
[319482458,1710799976120,-1289.15,0.00024931,2]
[319482459,1710799976129,-500.0,0.00024931,2]
[319482460,1710799976138,-1162.86,0.00024931,2]
[319482461,1710799976147,-500.0,0.00024931,2]
[319482462,1710799976156,-539.59,0.00024931,2]
[319482463,1710799976165,-1284.59,0.00024931,2]
[319482464,1710799976174,-1343.86,0.00024931,2]
[319482465,1710799976183,-2423.47,0.00024931,2]
[319482466,1710799976192,-487.81328454,0.00024931,2]
[319482467,1710799976202,-790.0,0.00024931,2]
[319482468,1710799976211,-1561.78,0.00024931,2]
[319482469,1710799976220,-2345.93,0.00024931,2]
[319482470,1710799976230,-1543.03,0.00024931,2]
[319482471,1710799976238,-688.89,0.00024931,2]
[319482472,1710799976247,-500.0,0.00024931,2]
[319482473,1710799976256,-779.42,0.00024931,2]
[319482474,1710799976266,-500.0,0.00024931,2]
[319482475,1710799976274,-1455.91,0.00024931,2]
[319482476,1710799976283,-964.51,0.00024931,2]
[319482477,1710799976292,-1604.71,0.00024931,2]
[319482478,1710799976302,-865.84,0.00024931,2]
[319482479,1710799976311,-500.0,0.00024931,2]
[319482480,1710799976320,-1347.47,0.00024931,2]
[319482481,1710799976328,-1883.82,0.00024931,2]
[319482482,1710799976337,-500.0,0.00024931,2]
[319482483,1710799976346,-615.15,0.00024931,2]
[319482484,1710799976355,-500.0,0.00024931,2]
[319482485,1710799976365,-500.0,0.00024931,2]
[319482486,1710799976374,-743.05,0.00024931,2]
[319482487,1710799976383,-1288.43,0.00024931,2]
[319482488,1710799976392,-532.05,0.00024931,2]
[319482489,1710799976402,-1050.86,0.00024931,2]
[319482490,1710799976411,-568.35,0.00024931,2]
[319482491,1710799976420,-500.0,0.00024931,2]
[319482492,1710799976430,-500.0,0.00024931,2]
[319482493,1710799976439,-500.0,0.00024931,2]
[319482494,1710799976448,-500.0,0.00024931,2]
[319482495,1710799976459,-801.95,0.00024931,2]
[319482496,1710799976468,-1387.79,0.00024931,2]
[319482497,1710799976477,-3692.13,0.00024931,2]
[319482498,1710799976487,-1021.88,0.00024931,2]
[319482499,1710799976496,-1736.34,0.00024931,2]
[319482500,1710799976505,-500.0,0.00024931,2]
[319482501,1710799976514,-722.05,0.00024931,2]
[319482502,1710799976524,-2682.4,0.00024931,2]
[319482503,1710799976533,-500.0,0.00024931,2]
[319482504,1710799976542,-917.72,0.00024931,2]
[319482505,1710799976551,-1582.16,0.00024931,2]
[319482506,1710799976560,-500.0,0.00024931,2]
[319482507,1710799976569,-500.0,0.00024931,2]
[319482508,1710799976578,-500.0,0.00024931,2]
[319482509,1710799976588,-500.0,0.00024931,2]
[319482510,1710799976597,-500.0,0.00024931,2]
[319482511,1710799976608,-500.0,0.00024931,2]
[319482512,1710799976617,-899.67,0.00024931,2]
[319482513,1710799976626,-500.0,0.00024931,2]
[319482514,1710799976636,-1197.99,0.00024931,2]
[319482515,1710799976646,-2570.57,0.00024931,2]
[319482516,1710799976656,-832.49,0.00024931,2]
[319482517,1710799976665,-500.0,0.00024931,2]
[319482518,1710799976674,-500.0,0.00024931,2]
[319482519,1710799976683,-2336.68,0.00024931,2]
[319482520,1710799976692,-714.57,0.00024931,2]
[319482521,1710799976703,-572.14,0.00024931,2]
[319482522,1710799976713,-570.84,0.00024931,2]
[319482523,1710799976722,-502.62530995,0.00024931,2]
[319482524,1710799976731,-1267.22,0.00024931,2]
[319482525,1710799976740,-532.64362858,0.00024931,2]
[319482526,1710799976749,-1986.27,0.00024931,2]
[319482527,1710799976758,-713.53,0.00024931,2]
[319482528,1710799976766,-500.0,0.00024931,2]
[319482529,1710799976775,-500.0,0.00024931,2]
[319482530,1710799976784,-1031.5,0.00024931,2]
[319482531,1710799976793,-500.0,0.00024931,2]
[319482532,1710799976802,-1487.73,0.00024931,2]
[319482533,1710799976811,-500.0,0.00024931,2]
[319482534,1710799976819,-1462.06,0.00024931,2]
[319482535,1710799976829,-1113.91,0.00024931,2]
[319482536,1710799976837,-662.67,0.00024931,2]
[319482537,1710799976846,-1374.98,0.00024931,2]
[319482538,1710799976855,-500.0,0.00024931,2]
[319482539,1710799976864,-2453.88,0.00024931,2]
[319482540,1710799976873,-584.72,0.00024931,2]
[319482541,1710799976882,-2831.64,0.00024931,2]
[319482542,1710799976891,-1349.99,0.00024931,2]
[319482543,1710799976900,-1580.15,0.00024931,2]
[319482544,1710799976909,-1466.21,0.00024931,2]
[319482545,1710799976917,-500.0,0.00024931,2]
[319482546,1710799976926,-500.0,0.00024931,2]
[319482547,1710799976935,-1118.72,0.00024931,2]
[319482548,1710799976944,-500.0,0.00024931,2]
[319482549,1710799976954,-606.91,0.00024931,2]
[319482550,1710799976963,-500.0,0.00024931,2]
[319482551,1710799976972,-1958.41,0.00024931,2]
[319482552,1710799976980,-605.4,0.00024931,2]
[319482553,1710799976989,-500.0,0.00024931,2]
[319482554,1710799976998,-500.0,0.00024931,2]
[319482555,1710799977007,-500.0,0.00024931,2]
[319482556,1710799977016,-942.42,0.00024931,2]
[319482557,1710799977025,-569.15,0.00024931,2]
[319482558,1710799977034,-500.0,0.00024931,2]
[319482559,1710799977043,-1400.41,0.00024931,2]
[319482560,1710799977052,-941.12,0.00024931,2]
[319482561,1710799977061,-500.0,0.00024931,2]
[319482562,1710799977071,-500.0,0.00024931,2]
[319482563,1710799977080,-1781.44,0.00024931,2]
[319482564,1710799977089,-500.0,0.00024931,2]
[319482565,1710799977098,-713.68,0.00024931,2]
[319482566,1710799977106,-1912.95,0.00024931,2]
[319482567,1710799977116,-1203.57,0.00024931,2]
[319482568,1710799977125,-905.72,0.00024931,2]
[319482569,1710799977134,-500.0,0.00024931,2]
[319482570,1710799977142,-500.0,0.00024931,2]
[319482571,1710799977151,-4393.41,0.00024931,2]
[319482572,1710799977160,-2303.75,0.00024931,2]
[319482573,1710799977169,-500.0,0.00024931,2]
[319482574,1710799977178,-1144.14,0.00024931,2]
[319482575,1710799977187,-1229.49,0.00024931,2]
[319482576,1710799977196,-1401.22,0.00024931,2]
[319482577,1710799977207,-511.29,0.00024931,2]
[319482578,1710799977216,-500.0,0.00024931,2]
[319482579,1710799977225,-1432.28,0.00024931,2]
[319482580,1710799977233,-500.0,0.00024931,2]
[319482581,1710799977242,-516.82,0.00024931,2]
[319482582,1710799977251,-500.0,0.00024931,2]
[319482583,1710799977260,-1305.33,0.00024931,2]
[319482584,1710799977269,-581.47,0.00024931,2]
[319482585,1710799977278,-678.53,0.00024931,2]
[319482586,1710799977286,-1022.21,0.00024931,2]
[319482587,1710799977295,-500.0,0.00024931,2]
[319482588,1710799977304,-737.52,0.00024931,2]
[319482589,1710799977313,-519.28582364,0.00024931,2]
[319482590,1710799977322,-1654.91,0.00024931,2]
[319482591,1710799977331,-402.05955298,0.00024931,2]
[319482592,1710799977340,-745.31,0.00024931,2]
[319482593,1710799977349,-500.0,0.00024931,2]
[319482594,1710799977358,-20689.66,0.00024931,2]
[319482595,1710799977367,-7202.93,0.00024931,2]
[319482596,1710799977376,-2992.02,0.00024931,2]
[319482597,1710799977385,-500.0,0.00024931,2]
[319482598,1710799977394,-638.22,0.00024931,2]
[319482599,1710799977403,-1110.24,0.00024931,2]
[319482600,1710799977412,-1088.66,0.00024931,2]
[319482601,1710799977421,-1157.8,0.00024931,2]
[319482602,1710799977431,-1090.38,0.00024931,2]
[319482603,1710799977440,-1367.92,0.00024931,2]
[319482604,1710799977451,-500.0,0.00024931,2]
[319482605,1710799977460,-8212.3,0.00024931,2]
[319482606,1710799977469,-395.94166687,0.00024931,2]
[319482607,1710799977479,-1716.46,0.00024931,2]
[319482608,1710799977488,-1412.21,0.00024931,2]
[319482609,1710799977497,-500.0,0.00024931,2]
[319482610,1710799977507,-605.07,0.00024931,2]
[319482611,1710799977516,-622.92,0.00024931,2]
[319482612,1710799977525,-738.47,0.00024931,2]
[319482613,1710799977534,-6843.13,0.00024931,2]
[319482614,1710799977543,-2375.9,0.00024931,2]
[319482615,1710799977552,-642.05,0.00024931,2]
[319482616,1710799977562,-1814.94,0.00024931,2]
[319482617,1710799977571,-720.26,0.00024931,2]
[319482618,1710799977580,-500.0,0.00024931,2]
[319482619,1710799977590,-7701.15,0.00024931,2]
[319482620,1710799977603,-2621.03,0.00024931,2]
[319482621,1710799977611,-1283.55,0.00024931,2]
[319482622,1710799977620,-867.51,0.00024931,2]
[319482623,1710799977629,-70618.05,0.00024931,2]
[319482624,1710799977638,-933.88,0.00024931,2]
[319482625,1710799977647,-651.4,0.00024931,2]
[319482626,1710799977656,-1968.24,0.00024931,2]
[319482627,1710799977665,-500.0,0.00024931,2]
[319482628,1710799977675,-1507.28,0.00024931,2]
[319482629,1710799977684,-15625.12,0.00024931,2]
[319482630,1710799977693,-2930.24,0.00024931,2]
[319482631,1710799977701,-500.0,0.00024931,2]
[319482632,1710799977710,-500.0,0.00024931,2]
[319482633,1710799977719,-908.19,0.00024931,2]
[319482634,1710799977728,-836.99,0.00024931,2]
[319482635,1710799977736,-1649.1,0.00024931,2]
[319482636,1710799977746,-500.0,0.00024931,2]
[319482637,1710799977754,-386.07,0.00024931,2]
[319482638,1710799977765,-1000.59,0.00024931,2]
[319482639,1710799977774,-3638.93,0.00024931,2]
[319482640,1710799977782,-500.0,0.00024931,2]
[319482641,1710799977791,-2240.25,0.00024931,2]
[319482642,1710799977800,-500.0,0.00024931,2]
[319482643,1710799977809,-500.0,0.00024931,2]
[319482644,1710799977818,-876.56,0.00024931,2]
[319482645,1710799977826,-1827.91,0.00024931,2]
[319482646,1710799977835,-500.0,0.00024931,2]
[319482647,1710799977844,-4659.24,0.00024931,2]
[319482648,1710799977854,-2226.67,0.00024931,2]
[319482649,1710799977863,-500.0,0.00024931,2]
[319482650,1710799977871,-500.0,0.00024931,2]
[319482651,1710799977881,-500.0,0.00024931,2]
[319482652,1710799977890,-3729.26,0.00024931,2]
[319482653,1710799977898,-500.0,0.00024931,2]
[319482654,1710799977907,-3606.56,0.00024931,2]
[319482655,1710799977917,-1207.02,0.00024931,2]
[319482656,1710799977926,-963.32,0.00024931,2]
[319482657,1710799977935,-28470.72,0.00024931,2]
[319482658,1710799977944,-2980.27,0.00024931,2]
[319482659,1710799977955,-1000.56,0.00024931,2]
[319482660,1710799977964,-500.0,0.00024931,2]
[319482661,1710799977974,-1014.54,0.00024931,2]
[319482662,1710799977984,-500.0,0.00024931,2]
[319482663,1710799977993,-1007.55,0.00024931,2]
[319482664,1710799978002,-500.0,0.00024931,2]
[319482665,1710799978014,-12991.16,0.00024931,2]
[319482666,1710799978023,-825.64,0.00024931,2]
[319482667,1710799978032,-1967.21,0.00024931,2]
[319482668,1710799978041,-500.0,0.00024931,2]
[319482669,1710799978050,-500.0,0.00024931,2]
[319482670,1710799978060,-989.42,0.00024931,2]
[319482671,1710799978069,-3061.78,0.00024931,2]
[319482672,1710799978078,-3350.06,0.00024931,2]
[319482673,1710799978087,-1418.83,0.00024931,2]
[319482674,1710799978096,-578.72,0.00024931,2]
[319482675,1710799978105,-500.0,0.00024931,2]
[319482676,1710799978114,-1283.92,0.00024931,2]
[319482677,1710799978123,-1017.47,0.00024931,2]
[319482678,1710799978133,-500.0,0.00024931,2]
[319482679,1710799978143,-793.34,0.00024931,2]
[319482680,1710799978153,-500.0,0.00024931,2]
[319482681,1710799978167,-544.38,0.00024931,2]
[319482682,1710799978176,-1383.54,0.00024931,2]
[319482683,1710799978186,-3058.85,0.00024931,2]
[319482684,1710799978195,-500.0,0.00024931,2]
[319482685,1710799978205,-4863.68,0.00024931,2]
[319482686,1710799978215,-3420.67,0.00024931,2]
[319482687,1710799978224,-500.0,0.00024931,2]
[319482688,1710799978233,-1467.98,0.00024931,2]
[319482689,1710799978243,-500.0,0.00024931,2]
[319482690,1710799978252,-500.0,0.00024931,2]
[319482691,1710799978261,-909.74,0.00024931,2]
[319482692,1710799978270,-500.0,0.00024931,2]
[319482693,1710799978279,-500.0,0.00024931,2]
[319482694,1710799978288,-616.14,0.00024931,2]
[319482695,1710799978297,-500.0,0.00024931,2]
[319482696,1710799978309,-1472.05,0.00024931,2]
[319482697,1710799978318,-1391.49,0.00024931,2]
[319482698,1710799978326,-500.0,0.00024931,2]
[319482699,1710799978335,-1026.28,0.00024931,2]
[319482700,1710799978344,-500.0,0.00024931,2]
[319482701,1710799978354,-501.4,0.00024931,2]
[319482702,1710799978363,-500.0,0.00024931,2]
[319482703,1710799978373,-1044.22,0.00024931,2]
[319482704,1710799978382,-736.5,0.00024931,2]
[319482705,1710799978391,-500.0,0.00024931,2]
[319482706,1710799978401,-1726.54,0.00024931,2]
[319482707,1710799978410,-2302.64,0.00024931,2]
[319482708,1710799978420,-1165.44,0.00024931,2]
[319482709,1710799978556,-12189.86,0.00024931,2]
[319482710,1710799978566,-1375.05,0.00024931,2]
[319482711,1710799978575,-1316.33,0.00024931,2]
[319482712,1710799978584,-1530.51,0.00024931,2]
[319482713,1710799978594,-515.52,0.00024931,2]
[319482714,1710799978606,-1294.68,0.00024931,2]
[319482715,1710799978615,-500.0,0.00024931,2]
[319482716,1710799978624,-1925.65,0.00024931,2]
[319482717,1710799978635,-1545.51,0.00024931,2]
[319482718,1710799978644,-728.8,0.00024931,2]
[319482719,1710799978653,-1677.75,0.00024931,2]
[319482720,1710799978662,-6062.83,0.00024931,2]
[319482721,1710799978671,-500.0,0.00024931,2]
[319482722,1710799978682,-630.76,0.00024931,2]
[319482723,1710799978693,-697.84,0.00024931,2]
[319482724,1710799978704,-500.0,0.00024931,2]
[319482725,1710799978713,-1154.87,0.00024931,2]
[319482726,1710799978723,-1111.24,0.00024931,2]
[319482727,1710799978733,-500.0,0.00024931,2]
[319482728,1710799978742,-2083.43,0.00024931,2]
[319482729,1710799978752,-500.0,0.00024931,2]
[319482730,1710799978761,-500.0,0.00024931,2]
[319482731,1710799978771,-873.95,0.00024931,2]
[319482732,1710799978780,-1539.77,0.00024931,2]
[319482733,1710799978790,-572.93,0.00024931,2]
[319482734,1710799978799,-1218.6,0.00024931,2]
[319482735,1710799978808,-500.0,0.00024931,2]
[319482736,1710799978818,-500.0,0.00024931,2]
[319482737,1710799978827,-762.41,0.00024931,2]
[319482738,1710799978836,-805.44,0.00024931,2]
[319482739,1710799978846,-2278.77,0.00024931,2]
[319482740,1710799978855,-2011.92,0.00024931,2]
[319482741,1710799978864,-500.0,0.00024931,2]
[319482742,1710799978874,-2062.21,0.00024931,2]
[319482743,1710799978883,-971.93,0.00024931,2]
[319482744,1710799978892,-768.87,0.00024931,2]
[319482745,1710799978901,-500.0,0.00024931,2]
[319482746,1710799978910,-1606.59,0.00024931,2]
[319482747,1710799978919,-500.0,0.00024931,2]
[319482748,1710799978928,-1340.16,0.00024931,2]
[319482749,1710799978938,-500.0,0.00024931,2]
[319482750,1710799978947,-1007.76,0.00024931,2]
[319482751,1710799978958,-4162.89,0.00024931,2]
[319482752,1710799978967,-1051.06,0.00024931,2]
[319482753,1710799978977,-500.0,0.00024931,2]
[319482754,1710799978986,-699.3,0.00024931,2]
[319482755,1710799978995,-518.73,0.00024931,2]
[319482756,1710799979006,-1416.75,0.00024931,2]
[319482757,1710799979015,-1220.37,0.00024931,2]
[319482758,1710799979025,-1475.69,0.00024931,2]
[319482759,1710799979034,-500.0,0.00024931,2]
[319482760,1710799979044,-1579.78,0.00024931,2]
[319482761,1710799979053,-960.76,0.00024931,2]
[319482762,1710799979062,-500.0,0.00024931,2]
[319482763,1710799979071,-515.78238462,0.00024931,2]
[319482764,1710799979081,-598.24,0.00024931,2]
[319482765,1710799979090,-3689.48,0.00024931,2]
[319482766,1710799979099,-685.26,0.00024931,2]
[319482767,1710799979109,-1883.02,0.00024931,2]
[319482768,1710799979118,-452.65780003,0.00024931,2]
[319482769,1710799979127,-725.93,0.00024931,2]
[319482770,1710799979137,-500.0,0.00024931,2]
[319482771,1710799979146,-582.85,0.00024931,2]
[319482772,1710799979157,-597.67,0.00024931,2]
[319482773,1710799979166,-945.24,0.00024931,2]
[319482774,1710799979175,-3264.27,0.00024931,2]
[319482775,1710799979184,-1114.59,0.00024931,2]
[319482776,1710799979194,-1101.09,0.00024931,2]
[319482777,1710799979206,-1090.35,0.00024931,2]
[319482778,1710799979215,-3081.47,0.00024931,2]
[319482779,1710799979224,-15199.29,0.00024931,2]
[319482780,1710799979233,-545.12,0.00024931,2]
[319482781,1710799979243,-525.35,0.00024931,2]
[319482782,1710799979252,-926.2,0.00024931,2]
[319482783,1710799979261,-524.35,0.00024931,2]
[319482784,1710799979270,-738.48,0.00024931,2]
[319482785,1710799979280,-640.81297824,0.00024931,2]
[319482786,1710799979289,-661.43,0.00024931,2]
[319482787,1710799979298,-521.01,0.00024931,2]
[319482788,1710799979307,-3873.88,0.00024931,2]
[319482789,1710799979317,-467.92,0.00024931,2]
[319482790,1710799979327,-2791.36,0.00024931,2]
[319482791,1710799979337,-1479.1,0.00024931,2]
[319482792,1710799979347,-8062.17,0.00024931,2]
[319482793,1710799979358,-1469.15,0.00024931,2]
[319482794,1710799979368,-1368.38,0.00024931,2]
[319482795,1710799979377,-500.0,0.00024931,2]
[319482796,1710799979388,-578.84,0.00024931,2]
[319482797,1710799979398,-500.0,0.00024931,2]
[319482798,1710799979407,-500.0,0.00024931,2]
[319482799,1710799979417,-500.0,0.00024931,2]
[319482800,1710799979426,-625.58,0.00024931,2]
[319482801,1710799979436,-500.0,0.00024931,2]
[319482802,1710799979445,-659.71,0.00024931,2]
[319482803,1710799979457,-500.0,0.00024931,2]